[Event "Championnat du monde jeunes U10"]
[Date "2024.11.22"]
[White "Guirado Lara, Pablo"]
[Black "Barsov, Mikhail"]
[WhiteElo "1832"]
[BlackElo "1668"]
[Round "7.29"]
[Result "1-0"]
[TimeControl "5400+30"]

1. e4 {[%clk 1:30:59]} 1... c6 {[%clk 1:30:57]} 2. Nf3 {[%clk 1:31:25]} 2... d5
{[%clk 1:31:23]} 3. Nc3 {[%clk 1:31:50]} 3... dxe4 {[%clk 1:31:51]} 4. Nxe4
{[%clk 1:32:17]} 4... Nf6 {[%clk 1:32:13]} 5. Qe2 {[%clk 1:32:41]} 5... Nxe4
{[%clk 1:32:40]} 6. Qxe4 {[%clk 1:33:06]} 6... Nd7 {[%clk 1:33:01]} 7. Bc4
{[%clk 1:33:23]} 7... Nf6 {[%clk 1:33:28]} 8. Ne5 {[%clk 1:33:47]} 8... e6
{[%clk 1:33:54]} 9. Qe2 {[%clk 1:34:13]} 9... b5 {[%clk 1:33:49]} 10. Bd3 {[%clk
1:34:34]} 10... Qc7 {[%clk 1:27:35]} 11. Nxc6 {[%clk 1:20:08]} 11... a6 {[%clk
1:27:22]} 12. Ne5 {[%clk 1:18:37]} 12... Bd6 {[%clk 1:27:43]} 13. Nf3 {[%clk
1:18:54]} 13... Nd5 {[%clk 1:24:44]} 14. Be4 {[%clk 0:58:59]} 14... Bb7 {[%clk
1:19:50]} 15. d4 {[%clk 0:52:56]} 15... Bb4+ {[%clk 1:11:44]} 16. Kf1 {[%clk
0:44:35]} 16... Rc8 {[%clk 1:00:27]} 17. c3 {[%clk 0:42:33]} 17... Be7 {[%clk
0:53:47]} 18. a3 {[%clk 0:37:06]} 18... h6 {[%clk 0:36:48]} 19. Ne5 {[%clk
0:28:10]} 19... Bd6 {[%clk 0:20:26]} 20. f4 {[%clk 0:20:54]} 20... Nf6 {[%clk
0:12:01]} 21. Bxb7 {[%clk 0:20:28]} 21... Qxb7 {[%clk 0:12:26]} 22. f5 {[%clk
0:12:26]} 22... Qd5 {[%clk 0:08:03]} 23. fxe6 {[%clk 0:11:27]} 23... fxe6 {[%clk
0:06:16]} 24. Nf3 {[%clk 0:08:42]} 24... Rf8 {[%clk 0:05:56]} 25. Be3 {[%clk
0:06:51]} 25... Ne4 {[%clk 0:05:56]} 26. Bf2 {[%clk 0:05:05]} 26... g5 {[%clk
0:05:29]} 27. h3 {[%clk 0:04:40]} 27... Bg3 {[%clk 0:05:35]} 28. Be3 {[%clk
0:03:28]} 28... Bh4 {[%clk 0:05:40]} 29. Kg1 {[%clk 0:02:54]} 29... Ng3 {[%clk
0:05:45]} 30. Qd3 {[%clk 0:03:00]} 30... Nxh1 {[%clk 0:05:57]} 31. Nxh4 {[%clk
0:01:33]} 31... gxh4 32. Kxh1 Rg8 {[%clk 0:06:01]} 33. Rg1 {[%clk 0:01:29]}
33... Rg3 {[%clk 0:06:07]} 34. Kh2 {[%clk 0:01:52]} 34... Rc7 {[%clk 0:06:15]}
35. Qd2 {[%clk 0:01:24]} 35... Rcg7 {[%clk 0:05:26]} 36. Bxh6 {[%clk 0:01:02]}
36... Rg8 {[%clk 0:05:29]} 37. Bf4 {[%clk 0:01:06]} 37... R3g6 {[%clk 0:04:38]}
38. g4 {[%clk 0:00:47]} 38... hxg3+ {[%clk 0:04:42]} 39. Rxg3 {[%clk 0:01:11]}
39... Qf5 {[%clk 0:04:53]} 40. Be5 {[%clk 0:01:09]} 40... Rxg3 {[%clk 0:04:10]}
41. Bxg3 Qg6 {[%clk 0:03:14]} 42. Qg2 {[%clk 0:01:46]} 42... Qd3 {[%clk
0:03:24]} 43. Qa8+ {[%clk 0:02:09]} 43... Kf7 {[%clk 0:03:45]} 44. Qb7+ {[%clk
0:02:24]} 44... Kf6 {[%clk 0:02:27]} 45. Be5+ {[%clk 0:02:47]} 45... Kg6 {[%clk
0:02:46]} 46. Qg2+ {[%clk 0:03:04]} 46... Kh7 {[%clk 0:02:35]} 47. Qf2 {[%clk
0:03:20]} 47... Rg6 {[%clk 0:00:38]} 48. Qf7+ {[%clk 0:03:38]} 48... Kh6 {[%clk
0:00:57]} 49. Bf4+ {[%clk 0:03:57]} 49... Rg5 50. Qf6+ Kh7 51. Qf7+ Kh6 1-0

[Variant "Standard"]
[Site "Europe Echecs"]

[Event "Championnat du monde jeunes U10"]
[Date "2024.11.22"]
[White "Kazimzade, Mahammad"]
[Black "Nikitakis, Michail"]
[WhiteElo "1687"]
[BlackElo "1818"]
[Round "7.31"]
[Result "1/2-1/2"]
[TimeControl "5400+30"]

1. c4 {[%clk 1:30:59]} 1... e5 {[%clk 1:30:55]} 2. Nc3 {[%clk 1:30:38]} 2... Nf6
{[%clk 1:31:20]} 3. d3 {[%clk 1:29:35]} 3... Nc6 {[%clk 1:31:10]} 4. g3 {[%clk
1:29:05]} 4... d5 {[%clk 1:30:10]} 5. cxd5 {[%clk 1:28:19]} 5... Nxd5 {[%clk
1:30:33]} 6. Bg2 {[%clk 1:27:32]} 6... Nb6 {[%clk 1:30:29]} 7. Nf3 {[%clk
1:27:06]} 7... Be7 {[%clk 1:30:47]} 8. O-O {[%clk 1:25:40]} 8... O-O {[%clk
1:31:09]} 9. b3 {[%clk 1:21:29]} 9... Re8 {[%clk 1:28:40]} 10. Bb2 {[%clk
1:21:10]} 10... Bf8 {[%clk 1:27:30]} 11. Rc1 {[%clk 1:17:44]} 11... Be6 {[%clk
1:24:21]} 12. a3 {[%clk 0:57:09]} 12... Na5 {[%clk 0:43:07]} 13. Nd2 {[%clk
0:56:28]} 13... Nc6 {[%clk 0:41:23]} 14. b4 {[%clk 0:46:11]} 14... a6 {[%clk
0:33:08]} 15. Nf3 {[%clk 0:37:59]} 15... f5 {[%clk 0:14:54]} 16. Nb1 {[%clk
0:17:01]} 16... Qf6 {[%clk 0:00:32]} 17. Nfd2 {[%clk 0:14:17]} 17... Bd5 {[%clk
0:00:31]} 18. e4 {[%clk 0:08:32]} 18... Be6 {[%clk 0:00:34]} 19. Nf3 {[%clk
0:07:08]} 19... fxe4 {[%clk 0:00:33]} 20. dxe4 {[%clk 0:07:31]} 20... Bg4 {[%clk
0:00:32]} 21. Qb3+ {[%clk 0:06:47]} 21... Be6 {[%clk 0:00:57]} 22. Qc3 {[%clk
0:06:33]} 22... Rad8 {[%clk 0:00:34]} 23. Qc2 {[%clk 0:05:45]} 23... Kh8 {[%clk
0:00:32]} 24. Nbd2 {[%clk 0:05:20]} 24... Rd7 {[%clk 0:00:31]} 25. h3 {[%clk
0:04:54]} 25... Red8 {[%clk 0:00:32]} 26. Rfd1 {[%clk 0:05:08]} 26... Bd6 {[%clk
0:00:32]} 27. Bf1 {[%clk 0:04:22]} 27... Rf8 {[%clk 0:00:33]} 28. Kh2 {[%clk
0:03:43]} 28... h6 {[%clk 0:00:32]} 29. Bg2 {[%clk 0:03:09]} 29... Kh7 {[%clk
0:00:31]} 30. Nf1 {[%clk 0:02:13]} 30... Nc4 {[%clk 0:00:31]} 31. Ne3 {[%clk
0:02:05]} 31... Nxe3 {[%clk 0:00:33]} 32. fxe3 {[%clk 0:02:30]} 32... g5 {[%clk
0:00:32]} 33. Rf1 {[%clk 0:02:44]} 33... Qg7 {[%clk 0:00:32]} 34. Bc3 {[%clk
0:01:56]} 34... Rdf7 {[%clk 0:00:34]} 35. Qb2 {[%clk 0:01:41]} 35... Bxh3 {[%clk
0:00:33]} 36. Bxh3 {[%clk 0:01:57]} 36... g4 {[%clk 0:00:33]} 37. Nh4 {[%clk
0:02:02]} 37... gxh3 {[%clk 0:00:33]} 38. Rxf7 {[%clk 0:01:07]} 38... Rxf7
{[%clk 0:00:33]} 39. Kxh3 {[%clk 0:01:07]} 39... Qg5 {[%clk 0:00:34]} 40. Qe2
{[%clk 0:01:18]} 40... Rg7 {[%clk 0:00:32]} 41. Qf3 {[%clk 0:01:00]} 41... Nd4
{[%clk 0:00:32]} 42. exd4 {[%clk 0:01:09]} 42... Qxc1 {[%clk 0:00:39]} 43. dxe5
{[%clk 0:00:56]} 43... Be7 {[%clk 0:00:31]} 44. Qf5+ {[%clk 0:01:14]} 44... Kg8
{[%clk 0:00:32]} 45. Qe6+ {[%clk 0:01:01]} 45... Kh7 {[%clk 0:00:31]} 46. Qf5+
{[%clk 0:00:53]} 46... Kg8 {[%clk 0:00:35]} 47. Qe6+ {[%clk 0:00:33]} 47... Kh7
{[%clk 0:00:33]} 48. Qf5+ Kg8 49. Qe6+ Rf7 50. Qc8+ Kh7 51. Qe6 Kg8 52. Qg6+ Rg7
53. Qe6+ Rf7 54. Qg6+ Kf8 55. e6 1/2-1/2

[Variant "Standard"]
[Site "Europe Echecs"]

[Event "Championnat du monde jeunes U10"]
[Date "2024.11.22"]
[White "Chkhartishvili, Lazare"]
[Black "Megagiannis, Maximos"]
[WhiteElo "1836"]
[BlackElo "1682"]
[Round "7.35"]
[Result "0-1"]
[TimeControl "5400+30"]

1. e4 {[%clk 1:30:58]} 1... c5 {[%clk 1:30:51]} 2. Nf3 {[%clk 1:31:19]} 2... e6
{[%clk 1:31:14]} 3. d4 {[%clk 1:31:36]} 3... cxd4 {[%clk 1:31:37]} 4. Nxd4
{[%clk 1:32:02]} 4... Nf6 {[%clk 1:31:58]} 5. Bd3 {[%clk 1:32:00]} 5... Nc6
{[%clk 1:32:20]} 6. Nxc6 {[%clk 1:31:53]} 6... bxc6 {[%clk 1:32:41]} 7. O-O
{[%clk 1:32:09]} 7... d5 {[%clk 1:33:06]} 8. e5 {[%clk 1:30:43]} 8... Nd7 {[%clk
1:33:26]} 9. Bf4 {[%clk 1:27:18]} 9... g5 {[%clk 1:33:07]} 10. Bg3 {[%clk
1:16:02]} 10... h5 {[%clk 1:33:06]} 11. h3 {[%clk 1:15:24]} 11... g4 {[%clk
1:32:52]} 12. hxg4 {[%clk 1:06:53]} 12... Qg5 {[%clk 1:32:32]} 13. Qd2 {[%clk
0:44:31]} 13... Qxg4 {[%clk 1:23:22]} 14. Qf4 {[%clk 0:42:59]} 14... Qg7 {[%clk
1:20:03]} 15. Nd2 {[%clk 0:34:23]} 15... Rb8 {[%clk 1:11:12]} 16. Rab1 {[%clk
0:23:06]} 16... Be7 {[%clk 1:09:55]} 17. Nf3 {[%clk 0:19:04]} 17... Rb4 {[%clk
1:06:57]} 18. c4 {[%clk 0:18:37]} 18... Nc5 {[%clk 1:01:20]} 19. Be2 {[%clk
0:17:24]} 19... Ne4 {[%clk 0:58:01]} 20. Bh4 {[%clk 0:14:03]} 20... Rg8 {[%clk
0:55:12]} 21. g3 {[%clk 0:13:53]} 21... Bc5 {[%clk 0:54:06]} 22. a3 {[%clk
0:12:33]} 22... Rb3 {[%clk 0:44:03]} 23. Kg2 {[%clk 0:12:16]} 23... Ba6 {[%clk
0:43:12]} 24. Bd1 {[%clk 0:07:01]} 24... Rd3 {[%clk 0:42:43]} 25. b4 {[%clk
0:03:59]} 25... Bxf2 {[%clk 0:38:40]} 26. Rxf2 {[%clk 0:02:11]} 26... Nxf2
{[%clk 0:38:47]} 27. Kxf2 {[%clk 0:01:20]} 27... Bxc4 {[%clk 0:38:48]} 28. Nd2
{[%clk 0:00:47]} 28... Rc3 {[%clk 0:21:49]} 29. Nxc4 {[%clk 0:00:35]} 29... Rxc4
{[%clk 0:22:00]} 30. Qf6 {[%clk 0:00:41]} 30... Qxf6+ {[%clk 0:21:31]} 31. Bxf6
{[%clk 0:01:11]} 31... Rc3 {[%clk 0:20:57]} 32. Rb3 {[%clk 0:00:50]} 32... Rgxg3
{[%clk 0:19:48]} 33. Rxc3 {[%clk 0:00:55]} 33... Rxc3 {[%clk 0:20:16]} 34. a4
{[%clk 0:01:18]} 34... Rc4 {[%clk 0:19:21]} 35. b5 {[%clk 0:01:26]} 35... cxb5
{[%clk 0:18:59]} 36. axb5 {[%clk 0:01:53]} 36... Rb4 {[%clk 0:18:33]} 37. Be2
{[%clk 0:02:08]} 37... h4 {[%clk 0:16:48]} 38. Kg2 {[%clk 0:01:50]} 38... Rb2
{[%clk 0:16:43]} 39. Kf3 {[%clk 0:00:43]} 39... h3 {[%clk 0:16:54]} 40. Bf1
{[%clk 0:01:05]} 40... h2 {[%clk 0:16:52]} 41. Bg2 {[%clk 0:01:29]} 41... Rb1
{[%clk 0:16:58]} 0-1

[Variant "Standard"]
[Site "Europe Echecs"]

[Event "Championnat du monde jeunes U10"]
[Date "2024.11.22"]
[White "Czech, Emil"]
[Black "Nguyen Minh"]
[WhiteElo "1608"]
[BlackElo "1760"]
[Round "7.41"]
[Result "0-1"]
[TimeControl "5400+30"]

1. e4 {[%clk 1:30:59]} 1... c5 {[%clk 1:30:52]} 2. Nf3 {[%clk 1:31:21]} 2... Nf6
{[%clk 1:31:13]} 3. e5 {[%clk 1:31:44]} 3... Nd5 {[%clk 1:31:39]} 4. Nc3 {[%clk
1:32:08]} 4... e6 {[%clk 1:31:51]} 5. Ne4 {[%clk 1:32:17]} 5... Nc6 {[%clk
1:31:45]} 6. Bb5 {[%clk 1:15:11]} 6... f5 {[%clk 0:57:49]} 7. Nc3 {[%clk
1:10:13]} 7... Nf4 {[%clk 0:47:58]} 8. g3 {[%clk 1:02:11]} 8... Ng6 {[%clk
0:47:55]} 9. Bxc6 {[%clk 1:01:25]} 9... bxc6 {[%clk 0:46:16]} 10. d3 {[%clk
0:55:24]} 10... d5 {[%clk 0:33:41]} 11. exd6 {[%clk 0:51:25]} 11... Bxd6 {[%clk
0:34:03]} 12. h4 {[%clk 0:43:43]} 12... h6 {[%clk 0:24:07]} 13. h5 {[%clk
0:35:28]} 13... Ne7 {[%clk 0:23:46]} 14. Nh4 {[%clk 0:33:44]} 14... O-O {[%clk
0:17:02]} 15. Qe2 {[%clk 0:22:51]} 15... Rf6 {[%clk 0:12:50]} 16. Bd2 {[%clk
0:20:08]} 16... e5 {[%clk 0:10:21]} 17. O-O-O {[%clk 0:19:32]} 17... Rb8 {[%clk
0:09:38]} 18. Rdg1 {[%clk 0:18:45]} 18... Rf7 {[%clk 0:06:25]} 19. Ng6 {[%clk
0:17:29]} 19... Qa5 {[%clk 0:05:30]} 20. Nxe7+ {[%clk 0:16:54]} 20... Bxe7
{[%clk 0:03:58]} 21. Qxe5 {[%clk 0:14:13]} 21... Rb7 {[%clk 0:04:13]} 22. a3
{[%clk 0:11:23]} 22... Qa6 {[%clk 0:03:22]} 23. f3 {[%clk 0:07:51]} 23... c4
{[%clk 0:02:59]} 24. dxc4 {[%clk 0:04:54]} 24... Bxa3 {[%clk 0:02:10]} 25. Qf4
{[%clk 0:00:37]} 25... Bxb2+ {[%clk 0:02:02]} 26. Kd1 {[%clk 0:01:00]} 26...
Rfe7 {[%clk 0:01:41]} 0-1

[Variant "Standard"]
[Site "Europe Echecs"]

[Event "Championnat du monde jeunes U10"]
[Date "2024.11.22"]
[White "Gim, Hajin"]
[Black "Mikkelsen, Anders Askjaer"]
[WhiteElo "1603"]
[BlackElo "1745"]
[Round "7.42"]
[Result "1-0"]
[TimeControl "5400+30"]

1. e4 {[%clk 1:30:58]} 1... e6 {[%clk 1:30:49]} 2. Nc3 {[%clk 1:31:08]} 2... d5
{[%clk 1:31:06]} 3. Nf3 {[%clk 1:31:23]} 3... d4 {[%clk 1:31:10]} 4. Ne2 {[%clk
1:31:44]} 4... c5 {[%clk 1:31:27]} 5. Ng3 {[%clk 1:32:05]} 5... Nc6 {[%clk
1:30:56]} 6. Bc4 {[%clk 1:32:27]} 6... a6 {[%clk 1:30:47]} 7. a4 {[%clk
1:32:39]} 7... Rb8 {[%clk 1:30:32]} 8. Qe2 {[%clk 1:32:27]} 8... Qa5 {[%clk
1:30:14]} 9. O-O {[%clk 1:29:49]} 9... Nge7 {[%clk 1:26:15]} 10. d3 {[%clk
1:29:41]} 10... b5 {[%clk 1:25:19]} 11. Bd2 {[%clk 1:29:44]} 11... Qc7 {[%clk
1:25:02]} 12. axb5 {[%clk 1:29:57]} 12... axb5 {[%clk 1:25:20]} 13. Bb3 {[%clk
1:30:22]} 13... Ng6 {[%clk 1:24:49]} 14. c3 {[%clk 1:30:00]} 14... Bd6 {[%clk
1:19:47]} 15. cxd4 {[%clk 1:29:52]} 15... cxd4 {[%clk 1:19:50]} 16. Rfc1 {[%clk
1:30:01]} 16... Bb7 {[%clk 1:18:52]} 17. Ng5 {[%clk 1:21:31]} 17... Nf4 {[%clk
1:16:33]} 18. Qf3 {[%clk 1:19:26]} 18... h6 {[%clk 1:16:40]} 19. Nxf7 {[%clk
1:13:22]} 19... Qxf7 {[%clk 1:15:16]} 20. Nf5 {[%clk 1:13:01]} 20... Bc7 {[%clk
1:03:50]} 21. Bxf4 {[%clk 1:13:13]} 21... Bxf4 {[%clk 1:04:00]} 22. Qxf4 {[%clk
1:13:35]} 22... O-O {[%clk 1:04:16]} 23. Qg3 {[%clk 1:13:10]} 23... Kh8 {[%clk
1:03:14]} 24. Bxe6 {[%clk 1:13:18]} 24... Qf6 {[%clk 1:03:37]} 25. Bd5 {[%clk
1:11:57]} 25... Ne5 {[%clk 0:59:05]} 26. Bxb7 {[%clk 1:11:27]} 26... Rxb7 {[%clk
0:59:24]} 27. f4 {[%clk 1:10:41]} 27... Ng6 {[%clk 0:56:10]} 28. Rc5 {[%clk
1:09:26]} 28... Kh7 {[%clk 0:49:56]} 29. Rac1 {[%clk 1:09:13]} 29... Rb6 {[%clk
0:49:33]} 30. Rc7 {[%clk 1:08:31]} 30... Rf7 {[%clk 0:49:52]} 31. Rxf7 {[%clk
1:08:34]} 31... Qxf7 {[%clk 0:50:18]} 32. Nxd4 {[%clk 1:06:02]} 32... Nxf4
{[%clk 0:50:31]} 33. Qf3 {[%clk 1:03:26]} 33... Rg6 {[%clk 0:48:49]} 34. Rf1
{[%clk 1:02:43]} 34... Rf6 {[%clk 0:46:01]} 35. Nf5 {[%clk 1:02:17]} 35... Ne6
{[%clk 0:45:25]} 36. Qe2 {[%clk 1:01:51]} 36... Qf8 {[%clk 0:40:31]} 37. d4
{[%clk 0:59:10]} 37... g6 {[%clk 0:39:05]} 38. d5 {[%clk 0:56:28]} 38... gxf5
{[%clk 0:26:54]} 39. dxe6 {[%clk 0:56:47]} 39... Rxe6 {[%clk 0:25:07]} 40. Qxb5
{[%clk 0:56:54]} 40... Rxe4 {[%clk 0:23:56]} 41. Qxf5+ {[%clk 0:55:14]} 41...
Qxf5 {[%clk 0:24:15]} 42. Rxf5 {[%clk 0:55:31]} 42... Rb4 {[%clk 0:24:29]} 43.
Rf2 {[%clk 0:55:50]} 43... Kg6 {[%clk 0:24:35]} 44. g3 {[%clk 0:56:12]} 44... h5
{[%clk 0:24:11]} 45. Kg2 {[%clk 0:55:26]} 45... Rb3 {[%clk 0:24:31]} 46. Kf1
{[%clk 0:55:29]} 46... Kg5 {[%clk 0:24:12]} 47. Ke1 {[%clk 0:55:13]} 47... Rb8
{[%clk 0:20:51]} 48. Kd1 {[%clk 0:55:15]} 48... Kg4 {[%clk 0:20:02]} 49. Kc2
{[%clk 0:55:36]} 49... Rc8+ {[%clk 0:20:26]} 50. Kb1 {[%clk 0:55:52]} 50... Rb8
{[%clk 0:20:19]} 51. Rf4+ {[%clk 0:56:03]} 51... Kg5 {[%clk 0:20:41]} 52. b4
{[%clk 0:55:57]} 52... Rb5 {[%clk 0:20:42]} 53. Kc2 {[%clk 0:56:04]} 53... Rb8
{[%clk 0:21:05]} 54. Kc3 {[%clk 0:56:01]} 54... Kg6 {[%clk 0:21:25]} 55. Rc4
{[%clk 0:56:13]} 55... Rb6 {[%clk 0:21:18]} 56. Rc5 {[%clk 0:56:14]} 56... Rb8
{[%clk 0:21:08]} 57. b5 {[%clk 0:56:35]} 57... Rb7 {[%clk 0:20:36]} 58. Kb4
{[%clk 0:56:50]} 58... Rb8 {[%clk 0:20:47]} 59. Rc6+ {[%clk 0:57:04]} 59... Kg5
{[%clk 0:21:08]} 60. b6 {[%clk 0:57:22]} 60... Kg4 {[%clk 0:21:27]} 61. Rc4+
{[%clk 0:57:24]} 61... Kf3 {[%clk 0:20:31]} 62. Kb5 {[%clk 0:57:27]} 62... Kg2
{[%clk 0:20:38]} 63. Rh4 {[%clk 0:57:33]} 63... Rh8 {[%clk 0:20:44]} 64. b7
{[%clk 0:57:53]} 64... Kf3 {[%clk 0:20:58]} 65. Kb6 {[%clk 0:58:11]} 65... Rh6+
{[%clk 0:21:06]} 66. Ka7 {[%clk 0:58:34]} 66... Rh7 {[%clk 0:21:25]} 67. Ka8
{[%clk 0:58:23]} 1-0

[Variant "Standard"]
[Site "Europe Echecs"]

[Event "Championnat du monde jeunes U10"]
[Date "2024.11.22"]
[White "Larionov, Serghei"]
[Black "Gomez Silva, Maximiliano"]
[WhiteElo "1720"]
[BlackElo "1643"]
[Round "7.44"]
[Result "1/2-1/2"]
[TimeControl "5400+30"]

1. d4 {[%clk 1:30:57]} 1... Nf6 {[%clk 1:30:36]} 2. c4 {[%clk 1:31:05]} 2... e5
{[%clk 1:30:37]} 3. dxe5 {[%clk 1:29:25]} 3... Ng4 {[%clk 1:30:47]} 4. e4 {[%clk
1:28:06]} 4... Nxe5 {[%clk 1:31:03]} 5. f4 {[%clk 1:27:49]} 5... Nec6 {[%clk
1:30:30]} 6. Be3 {[%clk 1:21:24]} 6... Bb4+ {[%clk 1:25:35]} 7. Nc3 {[%clk
1:16:23]} 7... Qe7 {[%clk 1:22:12]} 8. Bd3 {[%clk 1:09:50]} 8... O-O {[%clk
1:16:20]} 9. Ne2 {[%clk 1:08:56]} 9... f5 {[%clk 1:10:14]} 10. Ng3 {[%clk
1:07:41]} 10... d6 {[%clk 1:04:41]} 11. O-O {[%clk 1:05:32]} 11... Bxc3 {[%clk
1:02:15]} 12. bxc3 {[%clk 1:05:34]} 12... fxe4 {[%clk 1:02:09]} 13. Bxe4 {[%clk
1:04:11]} 13... Be6 {[%clk 0:51:44]} 14. Qd3 {[%clk 1:02:32]} 14... Kh8 {[%clk
0:39:59]} 15. Bd4 {[%clk 0:56:11]} 15... Nxd4 {[%clk 0:37:41]} 16. cxd4 {[%clk
0:56:33]} 16... c6 {[%clk 0:34:04]} 17. Rae1 {[%clk 0:51:11]} 17... Qd7 {[%clk
0:24:29]} 18. Bxh7 {[%clk 0:48:41]} 18... Bxc4 {[%clk 0:23:09]} 19. Qxc4 {[%clk
0:48:38]} 19... Kxh7 {[%clk 0:23:36]} 20. Qd3+ {[%clk 0:48:59]} 20... Kg8 {[%clk
0:22:17]} 21. f5 {[%clk 0:48:01]} 21... Na6 {[%clk 0:20:20]} 22. a3 {[%clk
0:38:54]} 22... Rae8 {[%clk 0:14:30]} 23. Rxe8 {[%clk 0:35:04]} 23... Qxe8
{[%clk 0:12:32]} 24. Ne4 {[%clk 0:30:06]} 24... d5 {[%clk 0:10:14]} 25. Ng5
{[%clk 0:30:17]} 25... Qh5 {[%clk 0:08:45]} 26. Ne6 {[%clk 0:30:18]} 26... Rf6
{[%clk 0:07:51]} 27. h3 {[%clk 0:30:08]} 27... Qh7 {[%clk 0:06:06]} 28. Ng5
{[%clk 0:28:43]} 28... Qh5 {[%clk 0:03:56]} 29. Qe3 {[%clk 0:28:35]} 29... Rf8
{[%clk 0:03:28]} 30. g4 {[%clk 0:27:39]} 30... Re8 {[%clk 0:02:59]} 31. Ne6
{[%clk 0:27:48]} 31... Qf7 {[%clk 0:01:41]} 32. Qf4 {[%clk 0:22:11]} 32... Qe7
{[%clk 0:00:48]} 33. Qg3 {[%clk 0:15:10]} 33... c5 {[%clk 0:00:39]} 34. Qe5
{[%clk 0:13:42]} 34... cxd4 {[%clk 0:00:42]} 35. Qxd5 {[%clk 0:14:06]} 35... Kh8
{[%clk 0:00:35]} 36. Qxd4 {[%clk 0:14:13]} 36... Rg8 {[%clk 0:00:40]} 37. Qxa7
Qxa3 {[%clk 0:00:57]} 38. Qxb7 {[%clk 0:14:08]} 38... Qxh3 {[%clk 0:00:59]} 39.
Qxa6 {[%clk 0:13:08]} 39... Qg3+ {[%clk 0:01:19]} 1/2-1/2

[Variant "Standard"]
[Site "Europe Echecs"]

[Event "Championnat du monde jeunes U10"]
[Date "2024.11.22"]
[White "Mitrovic, Vasilije"]
[Black "Skouroupathis, Kyriakos"]
[WhiteElo "1590"]
[BlackElo "1695"]
[Round "7.47"]
[Result "0-1"]
[TimeControl "5400+30"]

1. e4 {[%clk 1:30:56]} 1... c6 2. d4 {[%clk 1:29:54]} 2... d5 {[%clk 1:31:18]}
3. exd5 {[%clk 1:18:01]} 3... cxd5 {[%clk 1:29:16]} 4. Nc3 {[%clk 1:11:49]} 4...
Nf6 {[%clk 1:27:31]} 5. Bf4 {[%clk 1:09:26]} 5... a6 {[%clk 1:23:27]} 6. Nf3
{[%clk 1:04:05]} 6... Bg4 {[%clk 1:20:25]} 7. h3 {[%clk 1:00:13]} 7... Bh5
{[%clk 1:19:33]} 8. g4 {[%clk 0:56:54]} 8... Bg6 {[%clk 1:18:22]} 9. Bd3 {[%clk
0:52:11]} 9... Nc6 {[%clk 1:15:24]} 10. a3 {[%clk 0:42:00]} 10... e6 {[%clk
1:12:27]} 11. Bxg6 {[%clk 0:30:56]} 11... hxg6 {[%clk 1:12:31]} 12. Bg5 {[%clk
0:30:16]} 12... Be7 {[%clk 1:10:36]} 13. Bxf6 {[%clk 0:28:41]} 13... Bxf6 {[%clk
1:10:36]} 14. Qd2 {[%clk 0:27:11]} 14... Rc8 {[%clk 1:06:35]} 15. O-O-O {[%clk
0:24:56]} 15... Qc7 {[%clk 0:54:36]} 16. Kb1 {[%clk 0:21:40]} 16... Na5 {[%clk
0:52:48]} 17. Qd3 {[%clk 0:19:25]} 17... Nc4 {[%clk 0:48:16]} 18. Nd2 {[%clk
0:17:35]} 18... Nxa3+ {[%clk 0:47:50]} 19. bxa3 {[%clk 0:16:59]} 19... Qxc3
{[%clk 0:48:02]} 20. Qxc3 {[%clk 0:17:02]} 20... Rxc3 {[%clk 0:48:29]} 21. Nb3
{[%clk 0:17:02]} 21... Rhxh3 {[%clk 0:48:40]} 22. Rhf1 {[%clk 0:11:41]} 22...
Rcf3 {[%clk 0:47:46]} 23. Rd2 {[%clk 0:08:49]} 23... b6 {[%clk 0:43:18]} 24. Kc1
{[%clk 0:06:37]} 24... Bg5 {[%clk 0:43:16]} 25. Kd1 {[%clk 0:05:29]} 25... Bxd2
{[%clk 0:43:38]} 26. Kxd2 {[%clk 0:05:26]} 26... Rf4 {[%clk 0:44:04]} 27. g5
{[%clk 0:04:18]} 27... Rh5 {[%clk 0:44:15]} 28. Ke3 {[%clk 0:03:57]} 28... Re4+
{[%clk 0:44:42]} 29. Kd2 {[%clk 0:03:49]} 29... Rxg5 {[%clk 0:45:08]} 30. c3
{[%clk 0:03:37]} 30... Rg2 {[%clk 0:45:12]} 31. Nc1 {[%clk 0:03:32]} 31... g5
{[%clk 0:38:33]} 32. Nd3 {[%clk 0:03:24]} 32... g4 {[%clk 0:38:32]} 33. a4
{[%clk 0:03:09]} 33... g3 {[%clk 0:37:26]} 34. Kd1 {[%clk 0:02:38]} 34... gxf2
{[%clk 0:37:45]} 35. Rxf2 {[%clk 0:02:40]} 35... Rxf2 {[%clk 0:37:57]} 36. Nxf2
{[%clk 0:03:02]} 36... Rh4 {[%clk 0:37:46]} 37. Kd2 {[%clk 0:03:16]} 37... Rh2
{[%clk 0:38:11]} 38. Ke2 {[%clk 0:03:19]} 38... f6 {[%clk 0:38:23]} 39. Ke3
{[%clk 0:03:32]} 39... Rxf2 {[%clk 0:38:50]} 40. Kxf2 {[%clk 0:03:47]} 40... e5
{[%clk 0:39:18]} 41. Ke3 {[%clk 0:03:55]} 41... e4 {[%clk 0:39:24]} 42. c4
{[%clk 0:03:59]} 42... dxc4 {[%clk 0:39:46]} 43. Kxe4 {[%clk 0:04:22]} 43... b5
{[%clk 0:40:12]} 44. axb5 axb5 45. d5 {[%clk 0:04:24]} 45... Ke7 {[%clk
0:41:05]} 46. Kd4 {[%clk 0:04:45]} 46... Kd6 {[%clk 0:41:32]} 47. Ke4 {[%clk
0:04:56]} 47... c3 {[%clk 0:41:57]} 48. Kd3 {[%clk 0:05:16]} 48... Kxd5 {[%clk
0:42:23]} 49. Kxc3 {[%clk 0:05:34]} 49... g5 {[%clk 0:42:51]} 50. Kd3 {[%clk
0:05:47]} 50... g4 {[%clk 0:43:14]} 51. Ke3 {[%clk 0:05:52]} 51... b4 {[%clk
0:43:39]} 52. Kf4 {[%clk 0:06:07]} 52... b3 {[%clk 0:44:03]} 53. Kxg4 {[%clk
0:06:22]} 53... b2 {[%clk 0:44:24]} 54. Kf5 {[%clk 0:06:43]} 54... b1=Q+ {[%clk
0:44:41]} 55. Kxf6 {[%clk 0:07:02]} 55... Qe1 {[%clk 0:45:07]} 56. Kf5 {[%clk
0:07:18]} 56... Qf2+ {[%clk 0:45:29]} 57. Kg4 {[%clk 0:07:40]} 57... Ke5 {[%clk
0:45:51]} 58. Kg5 {[%clk 0:08:02]} 58... Qg3+ {[%clk 0:46:14]} 59. Kh6 {[%clk
0:08:13]} 59... Kf6 {[%clk 0:46:41]} 60. Kh7 {[%clk 0:08:14]} 60... Qg7# {[%clk
0:47:06]} 0-1

[Variant "Standard"]
[Site "Europe Echecs"]